bitfinex-derivatives/quotes_SOLF0:USTF0_20260217
["timestamp","ask_amount","ask_price","bid_price","bid_amount"]
[1771299066421,2.70398801,86.76,86.724,10.3834]
[1771299067315,2.70398801,86.76,86.724,14.04656241]
[1771299068021,2.70398801,86.76,86.69,72.58]
[1771299068022,2.42263819,86.769,86.728,14.04606241]
[1771299072433,2.42263819,86.769,86.732,10.3824]
[1771299076026,2.42263819,86.769,86.732,14.11439312]
[1771299076523,2.42263819,86.769,86.733,3.73199312]
[1771299076727,2.42263819,86.769,86.69,72.58]
[1771299076728,2.38346741,86.794,86.742,3.73199312]
[1771299076926,2.38346741,86.789,86.742,3.73199312]
[1771299077229,2.70757246,86.78,86.742,3.73199312]
[1771299077831,2.70757246,86.78,86.743,10.3811]
[1771299078126,2.37199741,86.779,86.743,10.3811]
[1771299078326,2.70757246,86.77,86.743,10.3811]
[1771299079329,2.70757246,86.77,86.736,3.73199312]
[1771299082230,2.70757246,86.76,86.736,3.73199312]
[1771299084631,2.45535357,86.769,86.736,3.73199312]
[1771299085331,2.70757246,86.76,86.712,3.73199312]
[1771299086025,2.70757246,86.76,86.714,3.73199312]
[1771299086728,2.70757246,86.74,86.714,3.73199312]
[1771299086932,2.70757246,86.73,86.691,3.73199312]
[1771299087437,13.09027246,86.73,86.691,3.73199312]
[1771299087829,2.70757246,86.72,86.68,3.73199312]
[1771299088425,2.70757246,86.71,86.68,3.73199312]
[1771299088624,2.70757246,86.7,86.679,246.04346044]
[1771299089731,2.47049297,86.699,86.643,14.30468295]
[1771299090031,2.70757246,86.67,86.638,3.73199312]
[1771299090231,72.58,86.703,86.638,3.73199312]
[1771299090232,2.70757246,86.69,86.638,3.73199312]
[1771299090430,2.70757246,86.69,86.64,3.73199312]
[1771299090833,2.70757246,86.68,86.64,3.73199312]
[1771299091023,2.70757246,86.67,86.64,3.73199312]
[1771299091636,2.70757246,86.68,86.64,3.73199312]
[1771299092030,2.70757246,86.67,86.64,3.73199312]
[1771299092537,2.47975118,86.679,86.64,3.73199312]
[1771299092731,2.70757246,86.68,86.64,3.73199312]
[1771299096738,2.70757246,86.67,86.64,3.73199312]
[1771299098340,2.12536242,86.68,86.64,3.73199312]
[1771299098341,2.70757246,86.68,86.64,3.73199312]
[1771299099543,2.70757246,86.67,86.64,3.73199312]
[1771299099936,161.468,86.753,86.64,3.73199312]
[1771299099937,2.70757246,86.68,86.64,3.73199312]
[1771299104742,20.7581,86.761,86.642,3.81815984]
[1771299104947,20.7581,86.761,86.602,2.00830445]
[1771299104948,2.70757246,86.71,86.651,3.81815984]
[1771299105540,2.70757246,86.69,86.651,3.81815984]
[1771299105748,2.70757246,86.68,86.638,3.81815984]
[1771299106250,2.70757246,86.68,86.622,72.6]
[1771299106251,2.70757246,86.68,86.642,3.81815984]
[1771299106651,3.85814928,86.689,86.642,3.81815984]
[1771299107149,3.85814928,86.689,86.645,3.81815984]
[1771299108046,3.85814928,86.689,86.63,2.70757246]
[1771299108047,2.70757246,86.69,86.65,3.81815984]
[1771299108248,2.70757246,86.7,86.65,3.81815984]
[1771299108443,3.85814928,86.699,86.65,3.81815984]
[1771299109645,2.70757246,86.71,86.661,3.82707011]
[1771299109944,3.62909524,86.709,86.661,3.82707011]
[1771299110348,2.70757246,86.7,86.661,3.82707011]
[1771299110649,2.70757246,86.7,86.662,10.3908]
[1771299110850,3.62909524,86.699,86.661,3.82707011]
[1771299112645,3.62909524,86.699,86.662,14.21777011]
[1771299112846,2.70757246,86.71,86.663,3.82707011]
[1771299113354,3.62909524,86.711,86.674,3.82707011]
[1771299113749,2.70757246,86.72,86.674,3.82707011]
[1771299114149,2.70757246,86.72,86.676,3.82707011]
[1771299114357,2.70757246,86.71,86.676,3.82707011]
[1771299119650,72.6,86.733,86.626,20.7904]
[1771299119651,2.70757246,86.7,86.661,3.82707011]
[1771299120244,3.62909524,86.699,86.661,3.82707011]
[1771299120858,2.70757246,86.69,86.646,3.82707011]
[1771299121654,6.3366677,86.68,86.646,3.82707011]
[1771299121858,3.62909524,86.679,86.636,3.82707011]
[1771299122361,2.70757246,86.67,86.636,3.82707011]
[1771299123556,3.62909524,86.679,86.636,3.82707011]
[1771299124261,2.70757246,86.68,86.636,3.82707011]
[1771299124656,2.70757246,86.68,86.638,3.82707011]
[1771299125451,2.70757246,86.67,86.611,3.82707011]
[1771299126362,3.62909524,86.659,86.62,3.82707011]
[1771299126660,2.70757246,86.65,86.62,3.82707011]
[1771299127465,2.70757246,86.66,86.62,3.82707011]
[1771299127658,2.70757246,86.67,86.62,3.82707011]
[1771299127853,6.3366677,86.67,86.62,3.82707011]
[1771299128055,10.3891,86.677,86.62,3.82707011]
[1771299128056,6.3366677,86.66,86.62,3.82707011]
[1771299128963,6.3366677,86.65,86.603,3.82707011]
[1771299129162,2.70757246,86.65,86.603,3.82707011]
[1771299129960,2.71429503,86.66,86.603,3.82707011]
[1771299130661,3.62909524,86.659,86.612,3.82707011]
[1771299130858,2.71429503,86.65,86.612,3.82707011]
[1771299131857,2.71429503,86.65,86.619,10.396]
[1771299132355,6.34339027,86.65,86.612,3.82707011]
[1771299132955,2.71429503,86.64,86.612,3.82707011]
[1771299133364,3.62909524,86.649,86.612,3.82707011]
[1771299135661,3.62909524,86.649,86.612,14.22387011]
[1771299136358,3.63318019,86.662,86.612,3.82707011]
[1771299136560,2.71429503,86.67,86.612,3.82707011]
[1771299136761,2.71429503,86.67,86.621,3.56423666]
[1771299137264,2.71429503,86.67,86.627,3.56423666]
[1771299137466,2.71429503,86.68,86.627,3.56423666]
[1771299138465,2.71429503,86.68,86.63,3.56423666]
[1771299139364,3.63318019,86.686,86.633,3.56423666]
[1771299139956,2.71429503,86.68,86.633,3.56423666]
[1771299140760,3.63318019,86.686,86.639,3.56423666]
[1771299141354,174.79400292,86.719,86.642,3.56423666]
[1771299141355,3.63318019,86.699,86.642,3.56423666]
[1771299141560,2.71429503,86.69,86.642,3.56423666]
[1771299142470,3.63318019,86.689,86.642,3.56423666]
[1771299143066,3.63318019,86.689,86.644,3.56423666]
[1771299143865,3.63318019,86.705,86.655,3.56423666]
[1771299144067,178.42718311,86.719,86.661,3.56423666]
[1771299145370,2.71429503,86.71,86.667,3.56423666]
[1771299145666,2.71429503,86.7,86.667,3.56423666]
[1771299145869,2.71429503,86.7,86.649,72.6]
[1771299145870,2.71429503,86.69,86.651,3.56423666]
[1771299146473,3.63318019,86.698,86.651,3.56423666]
[1771299146669,10.3871,86.694,86.651,3.56423666]
[1771299146866,3.63318019,86.689,86.651,3.56423666]
[1771299147676,72.6,86.705,86.651,3.56423666]
[1771299147677,6.34747522,86.7,86.651,3.56423666]
[1771299148064,3.63318019,86.7,86.651,3.56423666]
[1771299149363,3.63318019,86.7,86.654,3.56423666]
[1771299151665,6.34747522,86.7,86.654,3.56423666]
[1771299152175,3.63318019,86.699,86.654,3.56423666]
[1771299153473,3.63318019,86.699,86.656,13.95573666]
[1771299153673,3.63318019,86.699,86.657,3.56423666]
[1771299154378,3.63318019,86.699,86.66,10.3911]
[1771299154979,3.63318019,86.712,86.661,3.56423666]
[1771299155177,247.39400292,86.719,86.661,3.56423666]
[1771299155777,247.39400292,86.719,86.672,3.56423666]
[1771299156775,247.39400292,86.719,86.677,3.56423666]
[1771299156975,251.02718311,86.719,86.677,3.56423666]
[1771299157175,3.63318019,86.718,86.677,3.56423666]
[1771299158282,3.63318019,86.718,86.68,10.3887]
[1771299158481,3.63318019,86.718,86.68,13.95293666]
[1771299158676,2.71429503,86.73,86.681,3.56423666]
[1771299158881,3.63318019,86.733,86.681,3.56423666]
[1771299159675,3.63318019,86.733,86.696,10.3867]
[1771299159868,3.63318019,86.733,86.681,3.56423666]
[1771299160071,72.62,86.736,35.991,56.29707467]
[1771299160072,3.63318019,86.709,86.668,3.56423666]
[1771299160273,2.71429503,86.69,86.651,3.56423666]
[1771299160476,6.34747522,86.69,86.651,3.56423666]
[1771299161584,2.71429503,86.69,86.651,3.56423666]
[1771299161782,2.71429503,86.69,86.664,10.3905]
[1771299162282,9.503e-05,86.69,86.671,10.3896]
[1771299162491,6.34747522,86.7,86.651,3.56423666]
[1771299162881,3.63318019,86.699,86.651,3.56423666]
[1771299163684,3.63318019,86.699,86.663,10.3907]
[1771299170791,3.72370176,86.715,86.671,3.67334612]
[1771299171092,2.71429503,86.72,86.671,3.67334612]
[1771299171587,3.72370176,86.727,86.684,3.67334612]
[1771299172491,3.72370176,86.727,86.699,10.3863]
[1771299172993,3.72370176,86.727,86.687,10.3878]
[1771299174988,10.3817,86.739,86.693,3.67334612]
[1771299174989,3.72370176,86.739,86.693,3.67334612]
[1771299175684,2.71429503,86.74,86.693,3.67334612]
[1771299175886,3.72370176,86.749,86.693,3.67334612]
[1771299176080,2.71429503,86.73,86.693,3.67334612]
[1771299180079,2.71429503,86.74,86.696,3.67334612]
[1771299180279,6.43799679,86.75,86.7,2.71429503]
[1771299180484,6.43799679,86.75,86.701,3.67334612]
[1771299181080,6.43799679,86.75,86.706,10.3855]
[1771299182288,6.43799679,86.75,86.706,14.05884612]
[1771299182482,6.43799679,86.75,86.71,10.385]
[1771299182689,2.71429503,86.75,86.711,3.67334612]
[1771299183786,2.71429503,86.75,86.716,14.05764612]
[1771299183993,2.71429503,86.75,86.717,3.67334612]
[1771299185684,2.71429503,86.76,86.719,3.67334612]
[1771299185889,2.71429503,86.77,86.719,3.67334612]
[1771299186087,3.72370176,86.775,86.72,2.71429503]
[1771299186286,3.72370176,86.775,86.721,3.67334612]
[1771299187592,2.71429503,86.79,86.743,3.67334612]
[1771299187788,2.71429503,86.77,86.73,3.67334612]
[1771299188794,2.71429503,86.77,86.733,10.3822]
[1771299189895,2.70725549,86.77,86.733,10.3822]
[1771299191889,2.70725549,86.75,86.716,10.3844]
[1771299192094,2.70725549,86.74,86.716,10.3844]
[1771299192396,6.43095725,86.75,86.716,10.3844]
[1771299193787,6.43095725,86.74,86.7,3.67334612]
[1771299194192,5.549e-05,86.74,86.7,3.67334612]
[1771299194392,2.70725549,86.75,86.7,3.67334612]
[1771299195796,2.70725549,86.75,86.712,10.3848]
[1771299195991,2.70725549,86.75,86.713,3.76953745]
[1771299197094,2.70725549,86.75,86.685,72.62]
[1771299197095,2.70725549,86.78,86.724,3.76953745]
[1771299197394,3.82984986,86.797,86.741,3.76953745]
[1771299197991,3.82984986,86.797,86.758,10.3793]
[1771299199299,6.53710535,86.81,86.767,3.76953745]
[1771299199695,3.82984986,86.789,86.741,3.76953745]
[1771299199896,2.70725549,86.78,86.741,3.76953745]
[1771299200594,2.70725549,86.77,86.727,3.76953745]
[1771299200798,3.82984986,86.779,86.727,3.76953745]
[1771299201188,2.70725549,86.78,86.727,3.76953745]
[1771299201697,2.70725549,86.78,86.739,14.15113745]
[1771299201899,2.70725549,86.77,86.726,3.76953745]
[1771299202900,2.00548627,86.84,86.726,3.76953745]
[1771299202901,2.70725549,86.76,86.726,3.76953745]
[1771299203596,2.70725549,86.76,86.727,10.383]
[1771299203790,2.70725549,86.77,86.728,3.76953745]
[1771299204797,2.70725549,86.77,86.736,10.3819]
[1771299209802,2.70725549,86.77,86.745,10.3809]
[1771299210100,2.70725549,86.78,86.745,10.3809]
[1771299210496,6.53710535,86.77,86.732,10.3824]
[1771299210708,3.82984986,86.769,86.732,10.3824]
[1771299211705,2.70725549,86.76,86.732,10.3824]
[1771299212603,3.82984986,86.769,86.732,10.3824]
[1771299212805,2.70725549,86.77,86.739,10.3815]
[1771299213906,2.70725549,86.77,86.733,3.76953745]
[1771299216505,2.70725549,86.77,86.735,3.76953745]
[1771299216711,3.82984986,86.779,86.735,3.76953745]
[1771299217210,3.82984986,86.769,86.711,3.76953745]
[1771299218410,2.70725549,86.77,86.738,10.3816]
[1771299218613,2.70725549,86.78,86.739,3.76953745]
[1771299219011,2.70725549,86.79,86.739,3.76953745]
[1771299219906,2.70725549,86.79,86.749,10.3803]
[1771299221713,2.70725549,86.78,86.749,14.14983745]
[1771299225410,3.63236003,86.769,86.736,10.3819]
[1771299239123,2.70725549,86.77,86.74,10.3815]
[1771299239328,14.15437432,86.815,86.74,10.3815]
[1771299239329,2.70725549,86.8,86.741,3.59290881]
[1771299239524,2.70725549,86.81,86.751,3.59290881]
[1771299239825,2.70725549,86.81,86.729,21.45702443]
[1771299239826,72.62,86.817,86.776,3.59290881]
[1771299240424,2.70725549,86.81,86.776,3.59290881]
[1771299242027,3.92359307,86.809,86.763,3.59290881]
[1771299242330,2.70725549,86.77,86.737,3.59290881]
[1771299242928,2.70725549,86.77,86.739,10.3816]
[1771299249729,2.70725549,86.77,86.739,13.97450881]
[1771299249924,2.70693741,86.77,86.739,13.97450881]
[1771299251931,3.92359307,86.769,86.727,3.59290881]
[1771299252132,2.70693741,86.76,86.727,3.59290881]
[1771299252524,75.32693741,86.77,86.727,3.59290881]
[1771299253833,2.70693741,86.77,86.725,3.59290881]
[1771299254031,2.70693741,86.76,86.725,3.59290881]
[1771299254740,2.70693741,86.75,86.712,3.73468131]
[1771299254940,6.43105345,86.75,86.712,3.73468131]
[1771299255639,2.70693741,86.75,86.712,3.73468131]
[1771299255833,72.62,86.758,86.712,3.73468131]
[1771299256639,3.72411604,86.764,86.731,10.3826]
[1771299257237,2.70693741,86.76,86.723,10.3835]
[1771299257443,3.72411604,86.759,86.712,3.73468131]
[1771299257743,2.70693741,86.75,86.712,3.73468131]
[1771299257942,2.70693741,86.74,86.699,3.73468131]
[1771299259744,2.70693741,86.74,86.707,10.3854]
[1771299261851,2.70693741,86.73,86.707,10.3854]
[1771299262544,3.72411604,86.739,86.707,10.3854]
[1771299262947,2.70693741,86.74,86.711,10.3849]
[1771299268655,2.70693741,86.74,86.711,14.11958131]
[1771299269154,2.70693741,86.74,86.712,3.73468131]
[1771299270257,2.70693741,86.75,86.712,3.73468131]
[1771299271557,2.70693741,86.78,86.723,3.73468131]
[1771299272157,6.43105345,86.78,86.723,3.73468131]
[1771299272452,2.70693741,86.77,86.723,3.73468131]
[1771299272655,2.70693741,86.77,86.741,10.3813]
[1771299273457,3.72411604,86.759,86.733,10.3822]
[1771299275852,2.70693741,86.76,86.733,10.3822]
[1771299276960,2.70693741,86.76,86.724,14.11798131]
[1771299278852,6.43105345,86.76,86.724,14.11798131]
[1771299279059,3.72411604,86.759,86.724,14.11798131]
[1771299279460,3.72411604,86.749,86.715,10.3845]
[1771299279661,2.70693741,86.75,86.712,3.73468131]
[1771299280751,2.70693741,86.75,86.715,10.3844]
[1771299281157,2.70693741,86.75,86.716,3.73468131]
[1771299282858,6.43105345,86.75,86.716,3.73468131]
[1771299285256,6.43105345,86.75,86.704,10.3857]
[1771299285257,3.92317414,86.749,86.704,10.3857]
[1771299285463,2.70693741,86.74,86.704,10.3857]
[1771299286667,6.63011155,86.74,86.704,10.3857]
[1771299288461,6.63011155,86.74,86.704,13.98936103]
[1771299288662,6.63011155,86.74,86.705,3.60366103]
[1771299289169,6.63011155,86.74,86.68,242.90503737]
[1771299289170,76.54317414,86.758,86.709,3.60366103]
[1771299289364,3.92317414,86.757,86.709,3.60366103]
[1771299290670,3.92317414,86.757,86.72,10.3838]
[1771299293474,3.92317414,86.757,86.72,3.85294678]
[1771299294873,2.70693741,86.75,86.72,3.85294678]
[1771299295663,2.70693741,86.75,86.711,10.3849]
[1771299295664,3.72898159,86.749,86.711,10.3849]
[1771299295967,3.72898159,86.749,86.708,3.85294678]
[1771299297074,2.70693741,86.74,86.708,3.85294678]
[1771299297577,3.72898159,86.749,86.71,3.85294678]
[1771299297868,2.70693741,86.74,86.71,3.85294678]
[1771299298074,2.70693741,86.74,86.699,3.85294678]
[1771299298673,3.72898159,86.749,86.714,3.85294678]
[1771299298874,72.62,86.757,86.714,3.85294678]
[1771299299071,2.70693741,86.77,86.714,3.85294678]
[1771299299972,72.62,86.774,86.71,72.62]
[1771299299973,3.72898159,86.759,86.71,72.62]
[1771299300184,2.70693741,86.75,86.711,3.85294678]
[1771299300774,2.70693741,86.75,86.72,10.3839]
[1771299300978,2.70693741,86.74,86.711,3.85294678]
[1771299301180,2.70693741,86.74,86.68,242.90503737]
[1771299301181,2.70693741,86.74,86.693,3.85294678]
[1771299301781,2.70693741,86.72,86.68,244.05104674]
[1771299302169,2.70693741,86.71,86.68,3.85294678]
[1771299302477,2.70693741,86.69,86.652,3.85294678]
[1771299302683,2.70693741,86.69,86.607,28.64250172]
[1771299302684,2.70693741,86.68,86.639,3.85294678]
[1771299302985,2.70693741,86.68,86.645,10.3928]
[1771299303682,2.70693741,86.67,86.639,3.85294678]
[1771299303877,2.70693741,86.67,86.61,2.70693741]
[1771299303878,2.70693741,86.67,86.614,3.85294678]
[1771299304582,2.70693741,86.67,86.628,3.85294678]
[1771299304984,2.70693741,86.67,86.633,3.85294678]
[1771299305172,2.70693741,86.66,86.633,3.85294678]
[1771299305381,2.70693741,86.65,86.609,3.85294678]
[1771299306982,2.70693741,86.64,86.609,3.85294678]
[1771299308595,2.70693741,86.65,86.609,3.85294678]
[1771299309387,3.72898159,86.659,86.609,3.85294678]
[1771299309886,2.70693741,86.65,86.609,3.85294678]
[1771299311995,2.71448486,86.65,86.609,3.85294678]
[1771299321303,2.71448486,86.65,86.616,10.3963]
[1771299321899,3.95381412,86.649,86.609,3.85294678]
[1771299322705,2.71448486,86.65,86.609,3.85294678]
[1771299322906,2.71448486,86.66,86.609,3.85294678]
[1771299323104,3.95381412,86.659,86.609,3.85294678]
[1771299323498,2.71448486,86.65,86.609,3.85294678]
[1771299323694,2.71448486,86.65,86.618,10.3961]
[1771299324096,2.71448486,86.66,86.619,3.79034951]
[1771299325199,2.71448486,86.66,86.625,10.3953]
[1771299325407,3.95381412,86.659,86.625,10.3953]
[1771299326310,2.71448486,86.65,86.619,3.79034951]
[1771299328311,3.95381412,86.659,86.621,3.79034951]
[1771299328509,2.71448486,86.66,86.621,3.79034951]
[1771299328709,3.95381412,86.666,86.621,3.79034951]
[1771299329011,2.71448486,86.66,86.621,3.79034951]
[1771299329713,2.71448486,86.66,86.625,10.3952]
[1771299333305,3.95381412,86.659,86.608,10.3973]
[1771299333510,2.71448486,86.64,86.608,10.3973]
[1771299334308,3.95381412,86.639,86.608,10.3973]
[1771299334512,2.71448486,86.63,86.59,3.79034951]
[1771299335116,2.71448486,86.62,86.59,14.18974951]
[1771299335608,2.71448486,86.62,86.59,3.79034951]
[1771299336209,2.71448486,86.62,86.58,10.4006]
[1771299336610,2.71448486,86.62,86.586,10.3999]
[1771299339416,2.71448486,86.61,86.586,10.3999]
[1771299339718,2.71448486,86.61,86.547,72.64]
[1771299339719,2.71448486,86.6,86.569,3.79034951]
[1771299340116,3.95381412,86.609,86.569,3.79034951]
[1771299340715,3.95381412,86.609,86.569,14.19234951]
[1771299340914,2.71448486,86.6,86.569,14.19234951]
[1771299341322,3.95381412,86.609,86.569,14.19234951]
[1771299341620,76.59381412,86.609,86.575,10.4013]
[1771299342016,72.64,86.609,86.575,14.19164951]
[1771299342222,2.71448486,86.61,86.576,3.79034951]
[1771299343717,2.71448486,86.61,86.577,10.4009]
[1771299346527,6.47190425,86.61,86.577,10.4009]
[1771299349032,6.47190425,86.61,86.577,14.10477666]
[1771299349531,2.71448486,86.61,86.579,10.4008]
[1771299352529,72.64,86.616,86.579,10.4008]
[1771299352530,2.71448486,86.6,86.579,10.4008]
[1771299355037,2.71448486,86.61,86.579,10.4008]
[1771299355725,2.71448486,86.61,86.58,3.93937128]
[1771299357133,2.71448486,86.61,86.582,3.93937128]
[1771299360441,3.57665857,86.609,86.573,10.4014]
[1771299360639,3.57665857,86.609,86.57,3.93937128]
[1771299361837,3.57665857,86.609,86.572,3.93937128]
[1771299362233,72.64,86.616,86.582,10.4004]
[1771299363036,2.71448486,86.61,86.575,3.93937128]
[1771299363233,2.71448486,86.61,86.407,71.52341477]
[1771299363234,3.57665857,86.599,86.564,3.93937128]
[1771299363941,2.71448486,86.6,86.566,3.93937128]
[1771299364235,3.57665857,86.664,86.566,3.93937128]
[1771299364440,2.71448486,86.62,86.566,3.93937128]
[1771299364626,72.64,86.619,86.566,3.93937128]
[1771299365837,72.64,86.619,86.56,2.71448486]
[1771299365838,72.64,86.619,86.577,3.93937128]
[1771299366233,2.71448486,86.62,86.577,3.93937128]
[1771299366437,75.35448486,86.62,86.577,3.93937128]
[1771299368437,2.71448486,86.61,86.577,3.93937128]
[1771299369142,6.29114343,86.61,86.577,3.93937128]
[1771299370037,2.71448486,86.6,86.577,3.93937128]
[1771299370940,2.71448486,86.6,86.576,10.4011]
[1771299371136,3.57665857,86.599,86.566,10.4023]
[1771299371739,2.71448486,86.59,86.556,10.4035]
[1771299372038,2.71448486,86.59,86.484,34.64]
[1771299372039,3.57665857,86.579,86.539,3.93937128]
[1771299372840,3.57665857,86.579,86.544,3.93937128]
[1771299373038,10.48181239,86.641,86.544,3.93937128]
[1771299373345,2.71876784,86.6,86.551,3.93937128]
[1771299374443,72.64,86.608,86.564,3.832967]
[1771299375237,2.71876784,86.6,86.564,3.832967]
[1771299375945,2.71876784,86.6,86.568,10.4021]
[1771299376744,2.71876784,86.6,86.569,3.832967]
[1771299381047,72.64,86.608,86.569,3.832967]
[1771299382957,72.66,86.614,86.575,3.832967]
[1771299383145,2.71876784,86.6,86.575,3.832967]
[1771299387058,77.42597711,86.61,86.575,3.832967]
[1771299387560,2.04367302,86.609,86.575,3.832967]
[1771299388551,2.71876784,86.59,86.562,3.832967]
[1771299388758,2.04367302,86.599,86.562,3.832967]
[1771299388962,2.71876784,86.61,86.562,3.832967]
[1771299389157,75.37876784,86.61,86.562,3.832967]
[1771299389563,2.04518059,86.599,86.55,3.832967]
[1771299390063,2.04518059,86.599,86.561,10.4029]
[1771299391066,2.04316467,86.589,86.561,10.4029]
[1771299392364,2.04316467,86.589,86.552,10.404]
[1771299392564,2.04316467,86.589,86.475,453.53]
[1771299392565,2.71876784,86.58,86.542,3.832967]
[1771299393669,2.71876784,86.58,86.544,3.832967]
[1771299394765,2.71876784,86.58,86.545,10.4048]
[1771299395067,2.71876784,86.58,86.544,3.832967]
[1771299395068,2.04316467,86.589,86.544,3.832967]
[1771299396771,2.04316467,86.589,86.554,3.832967]
[1771299397072,2.71876784,86.58,86.531,3.832967]
[1771299397771,2.71876784,86.57,86.531,3.832967]
[1771299398471,1.99884994,86.579,86.541,10.4053]
[1771299398668,1.99884994,86.579,86.531,3.832967]
[1771299399672,1.99884994,86.579,86.54,10.4054]
[1771299399971,2.71876784,86.57,86.54,10.4054]
[1771299400373,1.99884994,86.579,86.54,14.238367]
[1771299401267,1.99884994,86.579,86.541,3.832967]
[1771299401468,2.71876784,86.58,86.547,10.4046]
[1771299402770,72.66,86.587,86.555,3.832967]
[1771299402971,2.71876784,86.59,86.555,3.832967]
[1771299403172,4.71581819,86.59,86.555,3.832967]
[1771299403369,1.99705035,86.579,86.546,10.4047]
[1771299404472,2.71876784,86.59,86.554,10.4038]
[1771299404771,1.99616616,86.589,86.554,10.4038]
[1771299405174,2.71876784,86.58,86.554,10.4038]
[1771299406371,2.71876784,86.57,86.536,3.64742941]
[1771299406580,2.71876784,86.56,86.535,10.4061]
[1771299406870,2.71876784,86.56,86.525,3.64742941]
[1771299407667,2.71876784,86.56,86.525,14.05462941]
[1771299407868,2.04495261,86.559,86.525,10.4072]
[1771299408070,2.04495261,86.549,86.525,10.4072]
[1771299408868,2.71876784,86.55,86.525,10.4072]
[1771299409074,2.71876784,86.56,86.525,10.4072]
[1771299409269,2.11703935,86.559,86.525,10.4072]
[1771299409468,2.11703935,86.559,86.517,3.9254036]
[1771299411075,2.14190482,86.549,86.506,14.3349036]
[1771299411381,2.71876784,86.54,86.507,3.9254036]
[1771299411566,2.71876784,86.54,86.47,21.34388431]
[1771299411567,74.80190482,86.539,86.494,3.9254036]
[1771299411771,2.71876784,86.53,86.494,3.9254036]
[1771299412377,4.86067266,86.53,86.494,3.9254036]
[1771299412576,4.86067266,86.53,86.462,96.01543919]
[1771299412577,2.71876784,86.52,86.484,3.9254036]
[1771299412777,2.71876784,86.53,86.497,3.9254036]
[1771299413080,72.66,86.54,86.497,3.9254036]
[1771299413280,75.37876784,86.54,86.497,3.9254036]
[1771299413582,2.71876784,86.53,86.497,3.9254036]
[1771299416473,2.71876784,86.53,86.499,3.9254036]
[1771299416679,2.71876784,86.54,86.499,3.9254036]
[1771299417285,2.71876784,86.53,86.5,10.4103]
[1771299418687,2.71876784,86.54,86.506,3.9254036]
[1771299419692,2.71876784,86.54,86.508,10.4093]
[1771299420587,2.71876784,86.55,86.517,3.9254036]
[1771299420787,2.19803666,86.556,86.517,3.9254036]
[1771299420978,2.71876784,86.53,86.493,3.9254036]
[1771299421179,2.71876784,86.5,86.453,3.9254036]
[1771299421379,72.66,86.514,86.453,3.9254036]
[1771299421585,2.71876784,86.53,86.48,3.9254036]
[1771299421785,72.66,86.529,86.48,3.9254036]
[1771299422092,2.71876784,86.54,86.493,3.9254036]
[1771299422284,72.66,86.543,86.493,3.9254036]
[1771299422887,72.66,86.543,86.501,3.9254036]
[1771299423490,2.21276213,86.549,86.501,3.9254036]
[1771299423682,2.21276213,86.549,86.507,3.9254036]
[1771299425686,2.71876784,86.55,86.51,3.9254036]
[1771299425888,2.71876784,86.56,86.51,3.9254036]
[1771299426094,72.68,86.567,86.511,3.9254036]
[1771299426482,2.129447,86.539,86.495,3.9254036]
[1771299426682,2.71876784,86.51,86.461,3.9254036]
[1771299426988,2.71876784,86.51,86.472,3.9254036]
[1771299428190,4.84821484,86.52,86.472,3.9254036]
[1771299428385,2.71876784,86.51,86.472,3.9254036]
[1771299429495,2.10835155,86.519,86.472,3.9254036]
[1771299429795,72.68,86.518,86.472,3.9254036]
[1771299429996,2.71876784,86.51,86.472,3.9254036]
[1771299431385,72.68,86.518,86.473,3.9254036]
[1771299431988,2.71876784,86.51,86.473,3.9254036]
[1771299433395,10.48181239,86.574,86.477,3.9254036]
[1771299433596,2.71876784,86.52,86.477,3.9254036]
[1771299434096,2.72299747,86.52,86.477,3.9254036]
[1771299434798,1.99291969,86.519,86.477,3.9254036]
[1771299434999,2.72299747,86.51,86.477,3.9254036]
[1771299435396,1.99291969,86.519,86.477,3.9254036]
[1771299436398,72.68,86.521,86.48,3.70828198]
[1771299437702,72.68,86.521,86.487,10.4118]
[1771299438304,2.72299747,86.52,86.487,14.12008198]
[1771299438498,2.72299747,86.52,86.488,3.70828198]
[1771299439300,2.72299747,86.52,86.491,10.4113]
[1771299439500,27.95150902,86.625,86.492,3.70828198]
[1771299439501,2.72299747,86.55,86.492,3.70828198]
[1771299440304,1.9846722,86.56,86.512,3.70828198]
[1771299440605,2.72299747,86.55,86.512,3.70828198]
[1771299441906,1.9846722,86.558,86.512,3.70828198]
[1771299442201,2.72299747,86.53,86.491,3.70828198]
[1771299442402,2.72299747,86.52,86.491,3.70828198]
[1771299443507,2.72299747,86.53,86.491,3.70828198]
[1771299444104,77.39910161,86.54,86.493,3.70828198]
[1771299444306,4.71910161,86.54,86.493,3.70828198]
[1771299444704,2.72299747,86.52,86.48,3.70828198]
[1771299445610,2.72299747,86.51,86.48,3.70828198]
[1771299446109,2.72299747,86.52,86.481,10.4126]
[1771299446308,2.72299747,86.52,86.481,14.12088198]
[1771299446610,2.72299747,86.5,86.455,3.70828198]
[1771299446800,2.72299747,86.49,86.455,3.70828198]
[1771299448198,2.72299747,86.49,86.456,10.4156]